[Event "Early-Titled-Tuesday-Blitz-February-13-2024"]
[Site "Chess.com"]
[Date "2024.02.13"]
[Round "2"]
[White "Road2GM3000"]
[Black "JiiHart"]
[Result "1-0"]
[WhiteElo "2468"]
[BlackElo "2138"]
[TimeControl "180+1"]
[EndTime "8:17:34 PST"]
[Termination "Road2GM3000 won by resignation"]

1. d4 {[%clk 0:03:00.9]} 1... d5 {[%clk 0:02:59.3]} 2. c4 {[%clk 0:03:01.1]}
2... c5 {[%clk 0:02:59.4]} 3. cxd5 {[%clk 0:02:58.8]} 3... Qxd5 {[%clk
0:02:59.3]} 4. Nc3 {[%clk 0:02:58]} 4... Qxd4 {[%clk 0:02:59]} 5. Qxd4 {[%clk
0:02:57.1]} 5... cxd4 {[%clk 0:02:59.3]} 6. Nb5 {[%clk 0:02:57.8]} 6... Na6
{[%clk 0:02:58.2]} 7. Nxd4 {[%clk 0:02:52.9]} 7... e5 {[%clk 0:02:55.7]} 8. Nb5
{[%clk 0:02:51.1]} 8... Bd7 {[%clk 0:02:45.5]} 9. e3 {[%clk 0:02:51.7]} 9...
Bb4+ {[%clk 0:02:40.1]} 10. Bd2 {[%clk 0:02:51.9]} 10... Bxd2+ {[%clk
0:02:31.3]} 11. Kxd2 {[%clk 0:02:52.8]} 11... O-O-O {[%clk 0:02:10]} 12. Nd6+
{[%clk 0:02:50.9]} 12... Kb8 {[%clk 0:02:03.1]} 13. Nxf7 {[%clk 0:02:51.4]}
13... Nf6 {[%clk 0:02:02]} 14. Nxh8 {[%clk 0:02:48.1]} 14... Bf5+ {[%clk
0:01:45.8]} 15. Ke1 {[%clk 0:02:47.3]} 15... Nb4 {[%clk 0:01:38.7]} 16. Rc1
{[%clk 0:02:41.3]} 16... Nc2+ {[%clk 0:01:28]} 17. Ke2 {[%clk 0:02:41.4]} 17...
Rxh8 {[%clk 0:01:22.1]} 18. f3 {[%clk 0:02:39.5]} 18... Rc8 {[%clk 0:01:15.2]}
19. e4 {[%clk 0:02:36.5]} 19... Nd4+ {[%clk 0:00:58.3]} 20. Kd1 {[%clk
0:02:36.4]} 20... Be6 {[%clk 0:00:54.6]} 21. Rxc8+ {[%clk 0:02:36.3]} 21... Kxc8
{[%clk 0:00:55.5]} 22. b3 {[%clk 0:02:35.5]} 22... a5 {[%clk 0:00:50.6]} 23. Bc4
{[%clk 0:02:34.6]} 23... Bxc4 {[%clk 0:00:37.7]} 24. bxc4 {[%clk 0:02:34.9]}
24... Kc7 {[%clk 0:00:38.6]} 25. Ne2 {[%clk 0:02:35]} 25... Nxe2 {[%clk
0:00:25.6]} 26. Kxe2 {[%clk 0:02:35]} 26... Kc6 {[%clk 0:00:26.5]} 27. Rb1
{[%clk 0:02:31]} 27... b6 {[%clk 0:00:25.8]} 28. Rb5 {[%clk 0:02:27.6]} 28...
Nd7 {[%clk 0:00:24.2]} 29. Rd5 {[%clk 0:02:28.1]} 29... Nc5 {[%clk 0:00:21]} 30.
Rxe5 {[%clk 0:02:27.9]} 30... Na4 {[%clk 0:00:17]} 31. Re7 {[%clk 0:02:27]}
31... Nc3+ {[%clk 0:00:11.7]} 32. Kd3 {[%clk 0:02:26.7]} 32... Nxa2 {[%clk
0:00:12.6]} 33. Rxg7 {[%clk 0:02:26.7]} 33... Nb4+ {[%clk 0:00:12.5]} 34. Kc3
{[%clk 0:02:25.4]} 34... Kc5 {[%clk 0:00:12.6]} 35. Rxh7 {[%clk 0:02:23.6]}
35... Nc6 {[%clk 0:00:11.3]} 36. Rh5+ {[%clk 0:02:23.1]} 36... Kd6 {[%clk
0:00:10.6]} 37. Rh6+ {[%clk 0:02:23.9]} 37... Kc5 {[%clk 0:00:10.4]} 38. Rxc6+
{[%clk 0:02:23.8]} 38... Kxc6 {[%clk 0:00:10.3]} 39. h4 {[%clk 0:02:24.2]} 39...
b5 {[%clk 0:00:09.4]} 40. cxb5+ {[%clk 0:02:24]} 1-0

[Event "Early-Titled-Tuesday-Blitz-February-13-2024"]
[Site "Chess.com"]
[Date "2024.02.13"]
[Round "2"]
[White "NanMKKhineHlyan"]
[Black "LileKoridze"]
[Result "0-1"]
[WhiteElo "1782"]
[BlackElo "2429"]
[TimeControl "180+1"]
[EndTime "8:17:34 PST"]
[Termination "LileKoridze won by resignation"]

1. e4 {[%clk 0:02:57.4]} 1... c5 {[%clk 0:03:00.2]} 2. Nf3 {[%clk 0:02:56.8]}
2... d6 {[%clk 0:03:00.8]} 3. d4 {[%clk 0:02:56.3]} 3... cxd4 {[%clk 0:03:00.9]}
4. Nxd4 {[%clk 0:02:56.6]} 4... Nf6 {[%clk 0:03:00.7]} 5. Nc3 {[%clk 0:02:53.4]}
5... a6 {[%clk 0:03:00.2]} 6. Bg5 {[%clk 0:02:49.7]} 6... Nbd7 {[%clk
0:02:59.6]} 7. f4 {[%clk 0:02:48.9]} 7... b5 {[%clk 0:02:57.4]} 8. a3 {[%clk
0:02:45.8]} 8... Qc7 {[%clk 0:02:57]} 9. Be2 {[%clk 0:02:42.7]} 9... Bb7 {[%clk
0:02:56.7]} 10. Bf3 {[%clk 0:02:38.5]} 10... e5 {[%clk 0:02:55.6]} 11. fxe5
{[%clk 0:02:36.8]} 11... dxe5 {[%clk 0:02:55.8]} 12. Nf5 {[%clk 0:02:35.3]}
12... g6 {[%clk 0:02:50.9]} 13. Ng3 {[%clk 0:02:30]} 13... Bg7 {[%clk
0:02:49.6]} 14. O-O {[%clk 0:02:28.8]} 14... O-O {[%clk 0:02:49.9]} 15. Kh1
{[%clk 0:02:27.2]} 15... h6 {[%clk 0:02:45.6]} 16. Be3 {[%clk 0:02:24.9]} 16...
Rad8 {[%clk 0:02:42.8]} 17. Qe1 {[%clk 0:02:23.5]} 17... Nb6 {[%clk 0:02:42.3]}
18. Qf2 {[%clk 0:02:22.8]} 18... Nc4 {[%clk 0:02:41.2]} 19. Bc5 {[%clk
0:02:12.7]} 19... Rd2 {[%clk 0:02:28.8]} 20. Qg1 {[%clk 0:01:57.8]} 20... Rc8
{[%clk 0:02:26.6]} 21. b4 {[%clk 0:01:50.6]} 21... Rxc2 {[%clk 0:02:25.5]} 22.
Nge2 {[%clk 0:01:35.8]} 22... Nd2 {[%clk 0:02:08.3]} 23. Rfc1 {[%clk 0:01:20.9]}
23... Rxc1 {[%clk 0:02:05.3]} 24. Rxc1 {[%clk 0:01:19.9]} 24... Nb3 {[%clk
0:02:05.7]} 25. Rd1 {[%clk 0:01:07.3]} 25... Nxc5 {[%clk 0:01:59.8]} 26. bxc5
{[%clk 0:01:07.7]} 26... Qxc5 {[%clk 0:02:00]} 27. Qe1 {[%clk 0:01:05]} 27...
Qxa3 {[%clk 0:01:57.5]} 28. Qg3 {[%clk 0:01:03.9]} 28... Rxc3 {[%clk 0:01:52.4]}
29. Nxc3 {[%clk 0:01:01.8]} 29... Qxc3 {[%clk 0:01:53.3]} 30. h4 {[%clk
0:00:57.4]} 30... Nxe4 {[%clk 0:01:50.9]} 0-1

[Event "Early-Titled-Tuesday-Blitz-February-13-2024"]
[Site "Chess.com"]
[Date "2024.02.13"]
[Round "2"]
[White "ilushka"]
[Black "marsofsilva"]
[Result "1-0"]
[WhiteElo "2446"]
[BlackElo "2056"]
[TimeControl "180+1"]
[EndTime "8:17:35 PST"]
[Termination "ilushka won by resignation"]

1. Nf3 {[%clk 0:02:59.9]} 1... c5 {[%clk 0:02:59.6]} 2. b3 {[%clk 0:02:59.7]}
2... d5 {[%clk 0:02:58.8]} 3. e3 {[%clk 0:02:59.7]} 3... f6 {[%clk 0:02:53.7]}
4. d4 {[%clk 0:02:58.7]} 4... Nc6 {[%clk 0:02:53.1]} 5. Bb2 {[%clk 0:02:56.9]}
5... Bg4 {[%clk 0:02:51.4]} 6. c4 {[%clk 0:02:56.7]} 6... e6 {[%clk 0:02:50.4]}
7. cxd5 {[%clk 0:02:53.2]} 7... exd5 {[%clk 0:02:50.2]} 8. Be2 {[%clk
0:02:53.5]} 8... Bd6 {[%clk 0:02:38.5]} 9. dxc5 {[%clk 0:02:52.9]} 9... Bxc5
{[%clk 0:02:38.6]} 10. O-O {[%clk 0:02:52.8]} 10... Nge7 {[%clk 0:02:38.4]} 11.
Nc3 {[%clk 0:02:51.4]} 11... Bh5 {[%clk 0:02:36.7]} 12. Rc1 {[%clk 0:02:51.1]}
12... Bd6 {[%clk 0:02:35.6]} 13. Nb5 {[%clk 0:02:48.6]} 13... Bb8 {[%clk
0:02:32.8]} 14. Nfd4 {[%clk 0:02:41.8]} 14... Bf7 {[%clk 0:02:29.6]} 15. g3
{[%clk 0:02:29.4]} 15... O-O {[%clk 0:02:20.8]} 16. Bf3 {[%clk 0:02:23]} 16...
a6 {[%clk 0:02:17.3]} 17. Nxc6 {[%clk 0:02:22.8]} 17... Nxc6 {[%clk 0:02:09.8]}
18. Nd4 {[%clk 0:02:22.5]} 18... Ne5 {[%clk 0:02:09.4]} 19. Bg2 {[%clk
0:02:21.7]} 19... Ba7 {[%clk 0:02:04.3]} 20. Qe2 {[%clk 0:02:21.3]} 20... Rc8
{[%clk 0:02:01.4]} 21. Rfd1 {[%clk 0:02:21.2]} 21... Qa5 {[%clk 0:01:56.4]} 22.
a3 {[%clk 0:02:17.2]} 22... Rfd8 {[%clk 0:01:40.9]} 23. b4 {[%clk 0:02:16.9]}
23... Qa4 {[%clk 0:01:37.9]} 24. Nf5 {[%clk 0:02:11.2]} 24... Qe8 {[%clk
0:01:27.5]} 25. Rxc8 {[%clk 0:02:08.7]} 25... Rxc8 {[%clk 0:01:26.4]} 26. Nd6
{[%clk 0:02:08.9]} 26... Qd7 {[%clk 0:01:21.5]} 27. Nxc8 {[%clk 0:02:08.9]}
27... Qxc8 {[%clk 0:01:22.4]} 28. Bxd5 {[%clk 0:02:08.1]} 28... Bxd5 {[%clk
0:01:12.4]} 29. Rxd5 {[%clk 0:02:09]} 29... Qc6 {[%clk 0:01:12.1]} 30. Rd8+
{[%clk 0:02:05.8]} 30... Kf7 {[%clk 0:01:12.3]} 31. Bxe5 {[%clk 0:02:05.4]}
31... fxe5 {[%clk 0:01:09.8]} 32. Qh5+ {[%clk 0:02:04.8]} 32... Ke7 {[%clk
0:01:07.9]} 33. Rg8 {[%clk 0:02:01.5]} 33... Qc1+ {[%clk 0:01:01.8]} 34. Kg2
{[%clk 0:02:01.5]} 34... Qc6+ {[%clk 0:01:00.5]} 35. Qf3 {[%clk 0:02:00.8]}
35... Qxf3+ {[%clk 0:00:39.2]} 36. Kxf3 {[%clk 0:02:01.7]} 36... Kf7 {[%clk
0:00:39.4]} 37. Rc8 {[%clk 0:02:00.5]} 37... Bb6 {[%clk 0:00:37.3]} 38. Rb8
{[%clk 0:01:58.8]} 1-0

[Event "Early-Titled-Tuesday-Blitz-February-13-2024"]
[Site "Chess.com"]
[Date "2024.02.13"]
[Round "2"]
[White "malakismayil"]
[Black "johnmez"]
[Result "1-0"]
[WhiteElo "2517"]
[BlackElo "2272"]
[TimeControl "180+1"]
[EndTime "8:17:37 PST"]
[Termination "malakismayil won by resignation"]

1. e4 {[%clk 0:03:00.9]} 1... c5 {[%clk 0:03:00.5]} 2. Nf3 {[%clk 0:03:00.1]}
2... e6 {[%clk 0:02:57.9]} 3. c3 {[%clk 0:02:59.8]} 3... d5 {[%clk 0:02:56.1]}
4. exd5 {[%clk 0:02:59.6]} 4... Qxd5 {[%clk 0:02:56.7]} 5. Be2 {[%clk
0:02:58.5]} 5... Nf6 {[%clk 0:02:56.5]} 6. O-O {[%clk 0:02:59]} 6... Nc6 {[%clk
0:02:54.2]} 7. d4 {[%clk 0:02:59.6]} 7... Be7 {[%clk 0:02:52.9]} 8. Be3 {[%clk
0:02:58.5]} 8... O-O {[%clk 0:02:51.9]} 9. dxc5 {[%clk 0:02:55]} 9... Rd8 {[%clk
0:02:12.5]} 10. Qxd5 {[%clk 0:02:51.7]} 10... Nxd5 {[%clk 0:02:13.1]} 11. Bd4
{[%clk 0:02:46.4]} 11... f6 {[%clk 0:02:07.7]} 12. Bc4 {[%clk 0:02:35]} 12... e5
{[%clk 0:02:05.6]} 13. Bxd5+ {[%clk 0:02:31.2]} 13... Rxd5 {[%clk 0:02:05.1]}
14. Be3 {[%clk 0:02:32]} 14... Bxc5 {[%clk 0:02:04.2]} 15. c4 {[%clk 0:02:32]}
15... Rd4 {[%clk 0:01:50]} 16. Bxd4 {[%clk 0:02:29.3]} 16... Nxd4 {[%clk
0:01:47.5]} 17. Nxd4 {[%clk 0:02:28.3]} 17... Bxd4 {[%clk 0:01:48.4]} 18. Nc3
{[%clk 0:02:28.5]} 18... Be6 {[%clk 0:01:48.7]} 19. Rfd1 {[%clk 0:02:16.5]}
19... Bxc4 {[%clk 0:01:45.8]} 20. Rac1 {[%clk 0:02:16.2]} 20... Be6 {[%clk
0:01:06.2]} 21. b3 {[%clk 0:02:13.2]} 21... Bg4 {[%clk 0:01:02.7]} 22. Re1
{[%clk 0:02:08.1]} 22... Rd8 {[%clk 0:01:00.9]} 23. h3 {[%clk 0:02:06.2]} 23...
Bh5 {[%clk 0:00:59.5]} 24. g4 {[%clk 0:02:02.5]} 24... Bg6 {[%clk 0:00:56.8]}
25. Nb5 {[%clk 0:01:55.9]} 25... Bb6 {[%clk 0:00:49.7]} 26. Red1 {[%clk
0:01:54.6]} 26... Rxd1+ {[%clk 0:00:37.8]} 27. Rxd1 {[%clk 0:01:55.5]} 27... a6
{[%clk 0:00:37.1]} 28. Nd6 {[%clk 0:01:54.1]} 28... Kf8 {[%clk 0:00:33]} 29.
Nxb7 {[%clk 0:01:52.6]} 29... Ke7 {[%clk 0:00:33.7]} 30. Nd6 {[%clk 0:01:49.6]}
30... Bc2 {[%clk 0:00:32.1]} 31. Nc8+ {[%clk 0:01:49.7]} 31... Ke8 {[%clk
0:00:26.6]} 32. Rc1 {[%clk 0:01:50.6]} 1-0

[Event "Early-Titled-Tuesday-Blitz-February-13-2024"]
[Site "Chess.com"]
[Date "2024.02.13"]
[Round "2"]
[White "chipmunknau"]
[Black "Zheenbekov86"]
[Result "1-0"]
[WhiteElo "2727"]
[BlackElo "2417"]
[TimeControl "180+1"]
[EndTime "8:17:40 PST"]
[Termination "chipmunknau won by resignation"]

1. d4 {[%clk 0:02:53]} 1... d5 {[%clk 0:02:59.5]} 2. c4 {[%clk 0:02:41.1]} 2...
c6 {[%clk 0:02:58.8]} 3. Nf3 {[%clk 0:02:39.4]} 3... Nf6 {[%clk 0:02:58.3]} 4.
Qb3 {[%clk 0:02:38.3]} 4... e6 {[%clk 0:02:48.2]} 5. Nc3 {[%clk 0:02:35.8]} 5...
Nbd7 {[%clk 0:02:45.1]} 6. Bf4 {[%clk 0:02:35.2]} 6... Be7 {[%clk 0:02:39.2]} 7.
h3 {[%clk 0:02:33.5]} 7... O-O {[%clk 0:02:39.3]} 8. e3 {[%clk 0:02:33.8]} 8...
dxc4 {[%clk 0:02:28.5]} 9. Bxc4 {[%clk 0:02:33.4]} 9... b5 {[%clk 0:02:27.2]}
10. Be2 {[%clk 0:02:33.7]} 10... a6 {[%clk 0:02:27.2]} 11. a4 {[%clk 0:02:30]}
11... b4 {[%clk 0:02:25]} 12. Na2 {[%clk 0:02:30.7]} 12... c5 {[%clk 0:02:23.1]}
13. O-O {[%clk 0:02:27]} 13... a5 {[%clk 0:02:18.7]} 14. Ne5 {[%clk 0:02:15.5]}
14... Bb7 {[%clk 0:02:17.6]} 15. Bb5 {[%clk 0:02:00.7]} 15... c4 {[%clk
0:01:47.2]} 16. Qxc4 {[%clk 0:01:54.2]} 16... Rc8 {[%clk 0:01:45]} 17. Qe2
{[%clk 0:01:51.2]} 17... Nxe5 {[%clk 0:01:43.3]} 18. Bxe5 {[%clk 0:01:51.1]}
18... Qd5 {[%clk 0:01:27.4]} 19. f3 {[%clk 0:01:49]} 19... Qb3 {[%clk
0:01:19.3]} 20. Rfc1 {[%clk 0:01:43.9]} 20... Nd5 {[%clk 0:01:18.5]} 21. Kf2
{[%clk 0:01:39.6]} 21... Bh4+ {[%clk 0:01:09.5]} 22. g3 {[%clk 0:01:39.6]} 22...
Nxe3 {[%clk 0:00:44.4]} 23. Qxe3 {[%clk 0:01:30.3]} 23... Qxb2+ {[%clk
0:00:39.1]} 24. Qe2 {[%clk 0:01:23.7]} 1-0

[Event "Early-Titled-Tuesday-Blitz-February-13-2024"]
[Site "Chess.com"]
[Date "2024.02.13"]
[Round "2"]
[White "gpsji27"]
[Black "Juwen"]
[Result "1-0"]
[WhiteElo "2320"]
[BlackElo "2614"]
[TimeControl "180+1"]
[EndTime "8:17:43 PST"]
[Termination "gpsji27 won by resignation"]

1. d4 {[%clk 0:03:00.6]} 1... Nf6 {[%clk 0:02:59.6]} 2. Nf3 {[%clk 0:03:01.2]}
2... d5 {[%clk 0:02:57]} 3. Bg5 {[%clk 0:03:01.7]} 3... Ne4 {[%clk 0:02:54.6]}
4. Bh4 {[%clk 0:03:01.2]} 4... c5 {[%clk 0:02:47.2]} 5. e3 {[%clk 0:02:52.8]}
5... Qb6 {[%clk 0:02:46.8]} 6. Nc3 {[%clk 0:02:52.7]} 6... Nxc3 {[%clk
0:02:27.3]} 7. bxc3 {[%clk 0:02:50.9]} 7... e6 {[%clk 0:02:27]} 8. Be2 {[%clk
0:02:44.2]} 8... Nc6 {[%clk 0:02:23.2]} 9. O-O {[%clk 0:02:44.1]} 9... Be7
{[%clk 0:02:22.1]} 10. Bxe7 {[%clk 0:02:43.6]} 10... Nxe7 {[%clk 0:02:22.6]} 11.
c4 {[%clk 0:02:43]} 11... O-O {[%clk 0:02:20]} 12. cxd5 {[%clk 0:02:43.2]} 12...
Nxd5 {[%clk 0:02:20.5]} 13. c4 {[%clk 0:02:36.3]} 13... Nc3 {[%clk 0:02:19.8]}
14. Qc2 {[%clk 0:02:34.8]} 14... Nxe2+ {[%clk 0:02:19.5]} 15. Qxe2 {[%clk
0:02:35.7]} 15... Qc7 {[%clk 0:02:19.8]} 16. Rac1 {[%clk 0:02:34]} 16... Rd8
{[%clk 0:02:17.2]} 17. Rfd1 {[%clk 0:02:34.3]} 17... cxd4 {[%clk 0:02:12.1]} 18.
exd4 {[%clk 0:02:33.1]} 18... b6 {[%clk 0:02:12.8]} 19. c5 {[%clk 0:02:28.6]}
19... bxc5 {[%clk 0:02:10.1]} 20. Rxc5 {[%clk 0:02:29.5]} 20... Qb6 {[%clk
0:01:44.2]} 21. Ne5 {[%clk 0:02:16.6]} 21... Bb7 {[%clk 0:01:43.2]} 22. h3
{[%clk 0:02:12.5]} 22... h6 {[%clk 0:01:18.6]} 23. Qh5 {[%clk 0:01:38.1]} 23...
Rf8 {[%clk 0:00:36.9]} 24. Nd7 {[%clk 0:01:35.4]} 24... Qb2 {[%clk 0:00:36.9]}
25. Nxf8 {[%clk 0:01:35]} 25... Rxf8 {[%clk 0:00:37.8]} 26. Rb5 {[%clk
0:01:31.4]} 1-0

[Event "Early-Titled-Tuesday-Blitz-February-13-2024"]
[Site "Chess.com"]
[Date "2024.02.13"]
[Round "2"]
[White "chucksterf10"]
[Black "Anton_Demchenko"]
[Result "0-1"]
[WhiteElo "2630"]
[BlackElo "2933"]
[TimeControl "180+1"]
[EndTime "8:17:45 PST"]
[Termination "Anton_Demchenko won by resignation"]

1. d4 {[%clk 0:02:57.8]} 1... Nf6 {[%clk 0:02:59.7]} 2. Bg5 {[%clk 0:02:57.1]}
2... g6 {[%clk 0:02:59.4]} 3. Bxf6 {[%clk 0:02:57.3]} 3... exf6 {[%clk
0:03:00.3]} 4. e3 {[%clk 0:02:57.6]} 4... d5 {[%clk 0:03:01.2]} 5. c4 {[%clk
0:02:57.4]} 5... dxc4 {[%clk 0:03:01.9]} 6. Bxc4 {[%clk 0:02:57]} 6... Bd6
{[%clk 0:03:02.6]} 7. Nc3 {[%clk 0:02:56.8]} 7... Nd7 {[%clk 0:03:01.5]} 8. Nf3
{[%clk 0:02:57.2]} 8... c6 {[%clk 0:02:58.9]} 9. O-O {[%clk 0:02:57]} 9... O-O
{[%clk 0:02:57.8]} 10. a4 {[%clk 0:02:57]} 10... Qe7 {[%clk 0:02:54.3]} 11. Re1
{[%clk 0:02:53.2]} 11... f5 {[%clk 0:02:44.9]} 12. e4 {[%clk 0:02:38.5]} 12...
fxe4 {[%clk 0:02:45.5]} 13. Rxe4 {[%clk 0:02:39.4]} 13... Qf6 {[%clk 0:02:30.2]}
14. Qd2 {[%clk 0:02:31.8]} 14... Nb6 {[%clk 0:02:20.3]} 15. Bb3 {[%clk
0:02:30.8]} 15... Bf5 {[%clk 0:02:20.8]} 16. Rh4 {[%clk 0:02:30.3]} 16... Rad8
{[%clk 0:02:10.7]} 17. a5 {[%clk 0:02:24.8]} 17... Nd5 {[%clk 0:02:04.6]} 18.
Qh6 {[%clk 0:01:50.8]} 18... Qg7 {[%clk 0:02:04.3]} 19. Ng5 {[%clk 0:01:46.4]}
19... Qxh6 {[%clk 0:01:54.7]} 20. Rxh6 {[%clk 0:01:47.3]} 20... Bf4 {[%clk
0:01:51.5]} 21. h4 {[%clk 0:01:40.5]} 21... Nf6 {[%clk 0:00:57.6]} 22. f3 {[%clk
0:01:27.3]} 22... Kg7 {[%clk 0:00:55.5]} 23. g3 {[%clk 0:01:17.7]} 23... Be3+
{[%clk 0:00:53.8]} 24. Kg2 {[%clk 0:01:17]} 24... Kxh6 {[%clk 0:00:54.4]} 25.
Nxf7+ {[%clk 0:01:17.4]} 25... Rxf7 {[%clk 0:00:54.9]} 26. Bxf7 {[%clk
0:01:18.2]} 26... Kg7 {[%clk 0:00:50.1]} 27. Bc4 {[%clk 0:01:10.9]} 27... Rxd4
{[%clk 0:00:49.4]} 28. b3 {[%clk 0:01:10]} 28... Rd2+ {[%clk 0:00:49.3]} 0-1

[Event "Early-Titled-Tuesday-Blitz-February-13-2024"]
[Site "Chess.com"]
[Date "2024.02.13"]
[Round "2"]
[White "Hovik_Hayrapetyan"]
[Black "crazy_but_lazy"]
[Result "1-0"]
[WhiteElo "2896"]
[BlackElo "2607"]
[TimeControl "180+1"]
[EndTime "8:17:47 PST"]
[Termination "Hovik_Hayrapetyan won by resignation"]

1. d4 {[%clk 0:03:00.9]} 1... Nf6 {[%clk 0:02:56]} 2. c4 {[%clk 0:03:00.6]} 2...
e6 {[%clk 0:02:56.5]} 3. Nc3 {[%clk 0:03:00.3]} 3... Bb4 {[%clk 0:02:55.7]} 4.
Nf3 {[%clk 0:03:00.3]} 4... d5 {[%clk 0:02:53.7]} 5. Qa4+ {[%clk 0:02:58.6]}
5... Nc6 {[%clk 0:02:54.1]} 6. a3 {[%clk 0:02:58.7]} 6... Bxc3+ {[%clk
0:02:49.9]} 7. bxc3 {[%clk 0:02:59.6]} 7... Ne4 {[%clk 0:02:50.4]} 8. e3 {[%clk
0:02:58.6]} 8... Nxc3 {[%clk 0:02:49.4]} 9. Qc2 {[%clk 0:02:58.3]} 9... Ne4
{[%clk 0:02:49.8]} 10. Bd3 {[%clk 0:02:58.9]} 10... f5 {[%clk 0:02:44.8]} 11.
Rb1 {[%clk 0:02:50.8]} 11... O-O {[%clk 0:02:43.5]} 12. O-O {[%clk 0:02:45.3]}
12... Rb8 {[%clk 0:02:02.7]} 13. a4 {[%clk 0:02:41]} 13... Bd7 {[%clk
0:02:02.1]} 14. Ba3 {[%clk 0:02:38.4]} 14... Rf6 {[%clk 0:02:02.3]} 15. cxd5
{[%clk 0:02:35]} 15... exd5 {[%clk 0:02:02.2]} 16. Rfc1 {[%clk 0:02:24.8]} 16...
Rh6 {[%clk 0:01:25.8]} 17. Rb5 {[%clk 0:02:20.7]} 17... Be6 {[%clk 0:01:22]} 18.
Rcb1 {[%clk 0:02:17.3]} 18... Bc8 {[%clk 0:01:06.3]} 19. Rxd5 {[%clk 0:02:13.8]}
19... Qxd5 {[%clk 0:00:55.8]} 20. Bc4 {[%clk 0:02:13]} 20... Be6 {[%clk
0:00:56.6]} 21. Bxd5 {[%clk 0:02:11.2]} 21... Bxd5 {[%clk 0:00:57.5]} 22. Rb5
{[%clk 0:02:07.5]} 22... Rd8 {[%clk 0:00:50]} 23. Rxd5 {[%clk 0:01:49.1]} 23...
Rxd5 {[%clk 0:00:48.7]} 24. Qb3 {[%clk 0:01:45.8]} 24... Nf6 {[%clk 0:00:46.6]}
25. Ne5 {[%clk 0:01:31.1]} 25... Na5 {[%clk 0:00:38.5]} 26. Qb4 {[%clk
0:01:28.2]} 1-0

[Event "Early-Titled-Tuesday-Blitz-February-13-2024"]
[Site "Chess.com"]
[Date "2024.02.13"]
[Round "2"]
[White "PepeCuenca"]
[Black "treadstone_71"]
[Result "1-0"]
[WhiteElo "2729"]
[BlackElo "2283"]
[TimeControl "180+1"]
[EndTime "8:17:51 PST"]
[Termination "PepeCuenca won by resignation"]

1. d4 {[%clk 0:03:00.9]} 1... Nf6 {[%clk 0:02:59.5]} 2. Bf4 {[%clk 0:03:00.8]}
2... g6 {[%clk 0:02:59.7]} 3. Nc3 {[%clk 0:03:01]} 3... d5 {[%clk 0:02:59.3]} 4.
e3 {[%clk 0:03:01.5]} 4... Bg7 {[%clk 0:02:59.4]} 5. h4 {[%clk 0:03:02.1]} 5...
h5 {[%clk 0:02:59.4]} 6. Nf3 {[%clk 0:02:59.8]} 6... O-O {[%clk 0:02:59.5]} 7.
Nb5 {[%clk 0:02:54.3]} 7... Na6 {[%clk 0:02:57.2]} 8. Ne5 {[%clk 0:02:53.1]}
8... c6 {[%clk 0:02:39.5]} 9. Nc3 {[%clk 0:02:52.8]} 9... c5 {[%clk 0:02:40.1]}
10. Bxa6 {[%clk 0:02:33.3]} 10... bxa6 {[%clk 0:02:39.9]} 11. dxc5 {[%clk
0:02:32.7]} 11... Qa5 {[%clk 0:02:13.6]} 12. Qd4 {[%clk 0:02:24]} 12... Ng4
{[%clk 0:01:24.5]} 13. b4 {[%clk 0:01:42.4]} 13... Qa3 {[%clk 0:01:10.3]} 14.
O-O {[%clk 0:01:28.3]} 14... Be6 {[%clk 0:01:02.3]} 15. Rab1 {[%clk 0:01:22.2]}
15... Nxe5 {[%clk 0:00:25]} 16. Bxe5 {[%clk 0:01:20.7]} 16... f6 {[%clk
0:00:22.1]} 17. Bg3 {[%clk 0:01:08.8]} 17... f5 {[%clk 0:00:18.5]} 18. Be5
{[%clk 0:01:08.6]} 1-0

[Event "Early-Titled-Tuesday-Blitz-February-13-2024"]
[Site "Chess.com"]
[Date "2024.02.13"]
[Round "2"]
[White "Sina_Movahed"]
[Black "Semetey"]
[Result "1-0"]
[WhiteElo "2994"]
[BlackElo "2656"]
[TimeControl "180+1"]
[EndTime "8:17:53 PST"]
[Termination "Sina_Movahed won by checkmate"]

1. e4 {[%clk 0:03:00.9]} 1... e5 {[%clk 0:02:58.3]} 2. Nf3 {[%clk 0:03:00.6]}
2... Nc6 {[%clk 0:02:58.2]} 3. Bb5 {[%clk 0:03:00.4]} 3... a6 {[%clk 0:02:58]}
4. Ba4 {[%clk 0:03:00.2]} 4... Nf6 {[%clk 0:02:57.9]} 5. O-O {[%clk 0:03:00.8]}
5... Be7 {[%clk 0:02:56.5]} 6. d3 {[%clk 0:03:00.8]} 6... b5 {[%clk 0:02:54.4]}
7. Bb3 {[%clk 0:03:00.9]} 7... O-O {[%clk 0:02:54.6]} 8. a4 {[%clk 0:03:00.8]}
8... Rb8 {[%clk 0:02:54.6]} 9. axb5 {[%clk 0:02:56.7]} 9... axb5 {[%clk
0:02:55.5]} 10. Nc3 {[%clk 0:02:57.5]} 10... d6 {[%clk 0:02:54.6]} 11. Nd5
{[%clk 0:02:56.9]} 11... Nxd5 {[%clk 0:02:50.6]} 12. Bxd5 {[%clk 0:02:57.8]}
12... Bd7 {[%clk 0:02:50.5]} 13. c3 {[%clk 0:02:56.5]} 13... Kh8 {[%clk
0:02:46.3]} 14. h3 {[%clk 0:02:33.9]} 14... f5 {[%clk 0:02:37.7]} 15. exf5
{[%clk 0:02:33.5]} 15... Rxf5 {[%clk 0:02:36.9]} 16. d4 {[%clk 0:02:31.7]} 16...
exd4 {[%clk 0:02:34.5]} 17. Bxc6 {[%clk 0:02:32]} 17... Bxc6 {[%clk 0:02:33.4]}
18. Nxd4 {[%clk 0:02:31.4]} 18... Rd5 {[%clk 0:02:16.9]} 19. Qb3 {[%clk
0:01:49.4]} 19... Qd7 {[%clk 0:02:10]} 20. Re1 {[%clk 0:01:18.1]} 20... Bf6
{[%clk 0:02:08.4]} 21. Be3 {[%clk 0:01:15.1]} 21... Bxd4 {[%clk 0:02:03.3]} 22.
Bxd4 {[%clk 0:01:16]} 22... Rg5 {[%clk 0:02:02.6]} 23. Qe6 {[%clk 0:01:05.3]}
23... Rxg2+ {[%clk 0:01:34.3]} 24. Kf1 {[%clk 0:01:04.7]} 24... Qd8 {[%clk
0:01:20.5]} 25. Qe7 {[%clk 0:00:38.4]} 25... Rh2 {[%clk 0:01:08.2]} 26. Qxg7#
{[%clk 0:00:37.1]} 1-0